[Event "Polish Youth 1st League 2022"]
[Site "Lublin"]
[Date "2022.06.27"]
[Round "3.23"]
[White "Bugaj, Hanna"]
[Black "Kudlak, Julia"]
[Result "1/2-1/2"]
[ECO "A48"]
[WhiteElo "1779"]
[BlackElo "1654"]
[Annotator "NA RC"]
[PlyCount "152"]
[EventDate "2022.06.24"]
[EventType "team-tourn"]
[EventCountry "POL"]
[SourceTitle "playchess.com"]
[Source "ChessBase"]
[SourceQuality "1"]
[TimeControl "40/5400+30:1800+30"]

1. Nf3 {[%emt 0:00:04]} Nf6 {[%emt 0:00:54]} 2. d4 {[%emt 0:00:20]} g6 {[%emt 0:01:17]} 3. c3 {[%emt 0:00:46]} Bg7 {[%emt 0:01:54]} 4. Nbd2 {[%emt 0:00:56]} d5 {[%emt 0:01:10]} 5. e3 {[%emt 0:02:47]} O-O {[%emt 0:01:04]} 6. Bd3 {[%emt 0:00:47]} b6 {[%emt 0:01:32]} 7. e4 {[%emt 0:05:35]} dxe4 {[%emt 0:01:29]} 8. Nxe4 {[%emt 0:00:07]} Bb7 {[%emt 0:03:41]} 9. Nxf6+ {[%emt 0:04:48]} exf6 {[%emt 0:02:04]} 10. O-O {[%emt 0:00:18]} Nd7 {[%emt 0:02:28]} 11. Be3 {[%emt 0:12:34]} c5 {[%emt 0:04:38]} 12. Be2 {[%emt 0:07:24]} cxd4 {[%emt 0:02:27]} 13. Bxd4 {[%emt 0:03:58]} Ne5 {[%emt 0:03:21]} 14. Nxe5 {[%emt 0:06:24]} fxe5 {[%emt 0:00:51]} 15. Be3 {[%emt 0:00:08]} Qc7 {[%emt 0:03:06]} 16. Qb3 {[%emt 0:06:10]} Kh8 {[%emt 0:03:46]} 17. Rad1 {[%emt 0:05:02]} Rad8 {[%emt 0:04:21]} 18. Qa4 {[%emt 0:04:44]} Bd5 {[%emt 0:12:06]} 19. Ba6 {[%emt 0:06:14]} f5 {[%emt 0:04:34]} 20. Bg5 {[%emt 0:03:00]} Bf6 {[%emt 0:07:06]} 21. Qh4 {[%emt 0:08:09]} Bxg5 {[%emt 0:03:39]} 22. Qxg5 {[%emt 0:00:05]} Bxa2 {[%emt 0:01:47]} 23. h4 {[%emt 0:01:26]} Bb3 {[%emt 0:02:40]} 24. Rde1 {[%emt 0:01:44]} e4 {[%emt 0:05:18]} 25. Re3 {[%emt 0:03:53]} Bc4 {[%emt 0:03:48]} 26. Bxc4 {[%emt 0:00:16]} Qxc4 {[%emt 0:00:03]} 27. h5 {[%emt 0:06:19]} Qf7 {[%emt 0:05:25]} 28. f3 {[%emt 0:01:12]} exf3 {[%emt 0:02:00]} 29. Rexf3 {[%emt 0:01:45]} Qf6 {[%emt 0:02:29]} 30. Qh6 {[%emt 0:02:17]} Qg7 {[%emt 0:00:24]} 31. Qg5 {[%emt 0:01:16]} Rde8 {[%emt 0:02:07]} 32. hxg6 {[%emt 0:01:46]} hxg6 {[%emt 0:02:14]} 33. Rh3+ {[%emt 0:01:14]} Kg8 {[%emt 0:00:07]} 34. Rh6 {[%emt 0:01:28]} Re6 {[%emt 0:02:05]} 35. Rf3 {[%emt 0:00:07]} Qf6 {[%emt 0:01:46]} 36. Qd2 {[%emt 0:01:04]} Rd6 {[%emt 0:00:49]} 37. Qe1 {[%emt 0:01:16]} Rfd8 {[%emt 0:02:11]} 38. Rxg6+ {[%emt 0:01:26]} Qxg6 {[%emt 0:00:39]} 39. Rg3 {[%emt 0:00:03]} Rd1 {[%emt 0:03:01]} 40. Rxg6+ {[%emt 0:00:00]} Kf7 {[%emt 0:00:00]} 41. Re6 {[%emt 0:00:10]} Rxe1+ {[%emt 0:00:37]} 42. Rxe1 {[%emt 0:00:05]} Rd2 {[%emt 0:00:40]} 43. b4 {[%emt 0:02:04]} Kf6 {[%emt 0:10:42]} 44. Ra1 {[%emt 0:01:04]} Rc2 {[%emt 0:02:22]} 45. Rxa7 {[%emt 0:00:30]} Rxc3 {[%emt 0:00:14]} 46. Rb7 {[%emt 0:00:39]} Rc6 {[%emt 0:00:58]} 47. Kf2 {[%emt 0:01:06]} Ke5 {[%emt 0:02:17]} 48. Ke3 {[%emt 0:01:33]} Rg6 {[%emt 0:01:59]} 49. Kf3 {[%emt 0:09:23]} Kd5 {[%emt 0:01:51]} 50. Kf4 {[%emt 0:12:42]} Kc6 {[%emt 0:01:06]} 51. Kxf5 {[%emt 0:01:33]} Rxg2 {[%emt 0:00:32]} 52. Rb8 {[%emt 0:00:43]} Rb2 {[%emt 0:01:06]} 53. Ke4 {[%emt 0:00:31]} Rxb4+ {[%emt 0:00:21]} 54. Kd3 {[%emt 0:00:05]} Rh4 {[%emt 0:02:01]} 55. Kc3 {[%emt 0:00:50]} Kc5 {[%emt 0:01:06]} 56. Rc8+ {[%emt 0:00:20]} Kb5 {[%emt 0:00:11]} 57. Rb8 {[%emt 0:00:47]} Rc4+ {[%emt 0:00:42]} 58. Kb3 {[%emt 0:00:26]} Rh4 {[%emt 0:01:33]} 59. Kc3 {[%emt 0:00:12]} Rh6 {[%emt 0:01:08]} 60. Kb3 {[%emt 0:01:00]} Rh3+ {[%emt 0:00:21]} 61. Kb2 {[%emt 0:00:09]} Kc5 {[%emt 0:00:19]} 62. Rc8+ {[%emt 0:00:34]} Kb4 {[%emt 0:00:09]} 63. Rg8 {[%emt 0:01:07]} Rh2+ {[%emt 0:00:39]} 64. Kb1 {[%emt 0:00:08]} b5 {[%emt 0:01:09]} 65. Rg4+ {[%emt 0:00:24]} Kb3 {[%emt 0:00:11]} 66. Rg3+ {[%emt 0:00:08]} Ka4 {[%emt 0:00:11]} 67. Rg4+ {[%emt 0:01:43]} b4 {[%emt 0:00:27]} 68. Rg3 {[%emt 0:00:12]} Rf2 {[%emt 0:02:29]} 69. Rh3 {[%emt 0:00:24]} Rf4 {[%emt 0:01:41]} 70. Kb2 {[%emt 0:00:47]} Rg4 {[%emt 0:00:06]} 71. Rf3 {[%emt 0:00:10]} Rg2+ {[%emt 0:01:21]} 72. Kb1 {[%emt 0:00:08]} Rd2 {[%emt 0:00:39]} 73. Rh3 {[%emt 0:00:21]} Kb5 {[%emt 0:00:23]} 74. Rg3 {[%emt 0:01:27]} Re2 {[%emt 0:01:13]} 75. Rh3 {[%emt 0:00:10]} Kc4 {[%emt 0:01:00]} 76. Rg3 {[%emt 0:01:43]} b3 {[%emt 0:02:25]} 1/2-1/2

[Event "Polish Youth 1st League 2022"]
[Site "Lublin"]
[Date "2022.06.27"]
[Round "3.25"]
[White "Wieczorek, Mikolaj"]
[Black "Wojdak, Jan"]
[Result "1-0"]
[ECO "B12"]
[WhiteElo "1942"]
[BlackElo "2144"]
[Annotator "RC"]
[PlyCount "57"]
[EventDate "2022.06.24"]
[EventType "team-tourn"]
[EventCountry "POL"]
[SourceTitle "playchess.com"]
[Source "ChessBase"]
[SourceQuality "1"]
[TimeControl "40/5400+30:1800+30"]

1. e4 {[%emt 0:00:02]} c6 {[%emt 0:00:57]} 2. d4 {[%emt 0:00:04]} d5 3. e5 {[%emt 0:00:04]} c5 {[%emt 0:00:10]} 4. dxc5 {[%emt 0:00:05]} e6 {[%emt 0:00:03]} 5. Qg4 {[%emt 0:00:08]} Nd7 {[%emt 0:06:33]} 6. Nf3 {[%emt 0:02:06]} Ne7 {[%emt 0:07:47]} 7. Bb5 {[%emt 0:19:21]} Nc6 {[%emt 0:04:42]} 8. Be3 {[%emt 0:07:48]} Qc7 {[%emt 0:00:55]} 9. O-O {[%emt 0:07:53]} Ndxe5 {[%emt 0:10:55]} 10. Nxe5 {[%emt 0:00:29]} Qxe5 {[%emt 0:00:05]} 11. c4 {[%emt 0:04:25]} dxc4 {[%emt 0:08:16]} 12. Nd2 {[%emt 0:02:43]} c3 {[%emt 0:21:43]} 13. Nc4 Qf5 {[%emt 0:01:27]} 14. Qg3 {[%emt 0:02:49]} e5 {[%emt 0:13:28]} 15. Nxe5 {[%emt 0:03:21]} Bd7 {[%emt 0:00:47]} 16. Nxd7 {[%emt 0:07:35]} Qxd7 {[%emt 0:03:12]} 17. Rad1 {[%emt 0:00:56]} Qf5 {[%emt 0:03:22]} 18. Qc7 {[%emt 0:08:39]} Qc8 {[%emt 0:00:20]} 19. Qg3 {[%emt 0:09:41]} Qf5 {[%emt 0:00:59]} 20. Bf4 {[%emt 0:02:56]} Be7 {[%emt 0:05:35]} 21. Qxg7 {[%emt 0:04:12]} Qf6 {[%emt 0:00:53]} 22. Qg3 Qg6 {[%emt 0:02:34]} 23. Qxc3 {[%emt 0:01:18]} Rg8 {[%emt 0:00:04]} 24. g3 {[%emt 0:00:44]} Qf5 {[%emt 0:00:05]} 25. Bd6 {[%emt 0:02:21]} Bxd6 {[%emt 0:01:03]} 26. Rxd6 {[%emt 0:00:41]} Rc8 {[%emt 0:00:14]} 27. Rfd1 {[%emt 0:02:34]} Rxg3+ {[%emt 0:00:26]} 28. hxg3 {[%emt 0:00:14]} Qxf2+ {[%emt 0:00:04]} 29. Kxf2 {[%emt 0:00:03]} 1-0

[Event "Polish Youth 1st League 2022"]
[Site "Lublin"]
[Date "2022.06.27"]
[Round "3.26"]
[White "Jendrowiak, Maciej"]
[Black "Halhoul, Adam"]
[Result "0-1"]
[ECO "D30"]
[WhiteElo "1713"]
[BlackElo "1675"]
[Annotator "NA RC"]
[PlyCount "66"]
[EventDate "2022.06.24"]
[EventType "team-tourn"]
[EventCountry "POL"]
[SourceTitle "playchess.com"]
[Source "ChessBase"]
[SourceQuality "1"]
[TimeControl "40/5400+30:1800+30"]

1. d4 {[%emt 0:00:03]} d5 {[%emt 0:00:48]} 2. c4 {[%emt 0:00:13]} e6 {[%emt 0:00:25]} 3. Nf3 {[%emt 0:00:26]} c6 {[%emt 0:00:22]} 4. g3 {[%emt 0:00:38]} dxc4 {[%emt 0:02:11]} 5. a4 {[%emt 0:03:12]} b5 {[%emt 0:10:42]} 6. Bg2 {[%emt 0:02:20]} Bb7 {[%emt 0:00:36]} 7. O-O {[%emt 0:01:41]} Nf6 {[%emt 0:00:45]} 8. Bg5 {[%emt 0:06:22]} Be7 {[%emt 0:01:22]} 9. Nc3 {[%emt 0:03:03]} a6 {[%emt 0:04:40]} 10. Ne5 {[%emt 0:02:04]} Nd5 {[%emt 0:02:53]} 11. Bxe7 {[%emt 0:02:57]} Qxe7 {[%emt 0:00:32]} 12. Bxd5 {[%emt 0:03:19]} exd5 {[%emt 0:01:46]} 13. a5 {[%emt 0:03:04]} O-O {[%emt 0:01:46]} 14. Re1 {[%emt 0:04:54]} c5 {[%emt 0:07:29]} 15. e4 {[%emt 0:04:42]} dxe4 {[%emt 0:01:35]} 16. f3 {[%emt 0:05:24]} Rd8 {[%emt 0:04:25]} 17. Nxe4 {[%emt 0:04:06]} cxd4 {[%emt 0:03:34]} 18. Ng4 {[%emt 0:02:51]} Bxe4 {[%emt 0:02:29]} 19. Rxe4 {[%emt 0:00:06]} Qc5 {[%emt 0:00:47]} 20. Qd2 {[%emt 0:04:22]} Nc6 {[%emt 0:02:28]} 21. Rae1 {[%emt 0:00:58]} d3+ {[%emt 0:02:55]} 22. Kg2 {[%emt 0:00:47]} h5 {[%emt 0:23:06]} 23. Ne5 {[%emt 0:17:04]} Nxe5 {[%emt 0:01:46]} 24. Rxe5 {[%emt 0:00:04]} Qc6 {[%emt 0:03:45]} 25. Rxh5 {[%emt 0:01:29]} Re8 {[%emt 0:01:58]} 26. g4 {[%emt 0:03:26]} Rxe1 {[%emt 0:01:49]} 27. Qxe1 {[%emt 0:00:07]} Qf6 {[%emt 0:08:31]} 28. Qe4 {[%emt 0:05:27]} Rd8 {[%emt 0:03:30]} 29. g5 {[%emt 0:05:37]} Qxb2+ {[%emt 0:00:26]} 30. Kh3 {[%emt 0:00:14]} g6 {[%emt 0:00:35]} 31. Rh6 {[%emt 0:08:17]} d2 {[%emt 0:01:14]} 32. Rxg6+ {[%emt 0:00:53]} fxg6 {[%emt 0:00:06]} 33. Qe6+ {[%emt 0:00:08]} Kh8 {[%emt 0:00:44]} 0-1

[Event "Polish Youth 1st League 2022"]
[Site "Lublin"]
[Date "2022.06.27"]
[Round "3.27"]
[White "Nagly, Wojciech"]
[Black "Wierzbicki, Dawid"]
[Result "0-1"]
[ECO "A40"]
[WhiteElo "1464"]
[BlackElo "1556"]
[Annotator "NA RC"]
[PlyCount "106"]
[EventDate "2022.06.24"]
[EventType "team-tourn"]
[EventCountry "POL"]
[SourceTitle "playchess.com"]
[Source "ChessBase"]
[SourceQuality "1"]
[TimeControl "40/5400+30:1800+30"]

1. d4 {[%emt 0:00:01]} b6 {[%emt 0:02:56]} 2. e4 {[%emt 0:00:38]} Bb7 {[%emt 0:00:31]} 3. Nc3 {[%emt 0:01:00]} d6 {[%emt 0:01:48]} 4. Nf3 {[%emt 0:01:41]} Nf6 {[%emt 0:00:23]} 5. d5 {[%emt 0:11:34]} g6 {[%emt 0:03:18]} 6. Bd3 {[%emt 0:04:20]} Bg7 {[%emt 0:00:26]} 7. O-O {[%emt 0:00:33]} O-O {[%emt 0:00:09]} 8. h3 {[%emt 0:06:54]} a6 {[%emt 0:01:07]} 9. Be3 {[%emt 0:02:46]} c6 {[%emt 0:01:47]} 10. dxc6 {[%emt 0:01:21]} Nxc6 {[%emt 0:01:59]} 11. Qe2 {[%emt 0:03:46]} Nd7 {[%emt 0:05:36]} 12. Rfd1 {[%emt 0:01:24]} Nce5 {[%emt 0:01:51]} 13. Nxe5 {[%emt 0:01:16]} Nxe5 {[%emt 0:00:09]} 14. f4 {[%emt 0:00:21]} Nd7 {[%emt 0:00:39]} 15. Qf2 Qc7 {[%emt 0:02:08]} 16. Nd5 {[%emt 0:11:30]} Bxd5 {[%emt 0:00:35]} 17. exd5 {[%emt 0:00:01]} Bxb2 {[%emt 0:02:42]} 18. Rab1 {[%emt 0:00:08]} Ba3 {[%emt 0:01:38]} 19. Qh4 {[%emt 0:04:05]} Bc5 {[%emt 0:01:22]} 20. Bxc5 {[%emt 0:02:41]} Qxc5+ {[%emt 0:00:14]} 21. Kh2 {[%emt 0:00:26]} Nf6 {[%emt 0:00:56]} 22. f5 {[%emt 0:03:01]} Kg7 {[%emt 0:06:53]} 23. g4 {[%emt 0:07:29]} Qxd5 {[%emt 0:01:50]} 24. Re1 {[%emt 0:05:17]} Ra7 {[%emt 0:02:05]} 25. Rbd1 {[%emt 0:05:41]} Qd4 {[%emt 0:05:27]} 26. Kh1 {[%emt 0:04:21]} Qf4 {[%emt 0:04:05]} 27. Rf1 {[%emt 0:02:28]} Qe3 {[%emt 0:02:23]} 28. g5 {[%emt 0:01:49]} Nh5 {[%emt 0:00:29]} 29. Rde1 {[%emt 0:01:18]} Qg3 {[%emt 0:00:52]} 30. Qd4+ {[%emt 0:00:45]} Kg8 {[%emt 0:00:47]} 31. fxg6 {[%emt 0:03:07]} Qxh3+ {[%emt 0:00:46]} 32. Kg1 {[%emt 0:00:05]} Qg3+ {[%emt 0:00:06]} 33. Kh1 {[%emt 0:00:09]} hxg6 {[%emt 0:00:20]} 34. Bxg6 {[%emt 0:03:45]} e5 {[%emt 0:22:25]} 35. Qxb6 Qh4+ {[%emt 0:00:47]} 36. Kg1 {[%emt 0:09:40]} Qxg5+ {[%emt 0:01:59]} 37. Kh2 {[%emt 0:00:55]} Qg3+ {[%emt 0:03:29]} 38. Kh1 {[%emt 0:00:04]} Nf4 {[%emt 0:08:07]} 39. Be4 {[%emt 0:01:38]} f5 {[%emt 0:01:14]} 40. Qxa7 {[%emt 0:00:00]} Qh3+ {[%emt 0:00:00]} 41. Kg1 {[%emt 0:01:02]} fxe4 {[%emt 0:00:27]} 42. Rf2 {[%emt 0:16:32]} Qg3+ {[%emt 0:00:18]} 43. Kf1 {[%emt 0:02:18]} Qh4 {[%emt 0:01:09]} 44. Rxf4 exf4 {[%emt 0:05:48]} 45. Qd4 {[%emt 0:04:20]} e3 {[%emt 0:01:19]} 46. Qd5+ {[%emt 0:00:41]} Kg7 {[%emt 0:00:20]} 47. Ke2 {[%emt 0:02:52]} f3+ {[%emt 0:02:10]} 48. Kd1 {[%emt 0:00:10]} e2+ {[%emt 0:00:26]} 49. Kd2 {[%emt 0:00:59]} Qf4+ {[%emt 0:00:37]} 50. Kd3 {[%emt 0:00:50]} Qf5+ {[%emt 0:00:35]} 51. Qxf5 {[%emt 0:00:14]} Rxf5 {[%emt 0:00:05]} 52. Ke3 {[%emt 0:00:12]} f2 {[%emt 0:00:21]} 53. Rxe2 {[%emt 0:00:06]} f1=Q {[%emt 0:00:11]} 0-1

[Event "Polish Youth 1st League 2022"]
[Site "Lublin"]
[Date "2022.06.27"]
[Round "3.28"]
[White "Oles, Mateusz"]
[Black "Gibala, Adam"]
[Result "1/2-1/2"]
[ECO "B44"]
[WhiteElo "1201"]
[BlackElo "1516"]
[Annotator "NA RC"]
[PlyCount "95"]
[EventDate "2022.06.24"]
[EventType "team-tourn"]
[EventCountry "POL"]
[SourceTitle "playchess.com"]
[Source "ChessBase"]
[SourceQuality "1"]
[TimeControl "40/5400+30:1800+30"]

1. e4 {[%emt 0:00:04]} c5 {[%emt 0:00:06]} 2. Nf3 {[%emt 0:00:20]} e6 {[%emt 0:00:06]} 3. d4 {[%emt 0:01:40]} cxd4 {[%emt 0:00:06]} 4. Nxd4 {[%emt 0:00:05]} Nc6 {[%emt 0:00:05]} 5. Nxc6 {[%emt 0:03:29]} bxc6 {[%emt 0:00:10]} 6. Bd3 {[%emt 0:01:19]} e5 {[%emt 0:00:49]} 7. O-O {[%emt 0:01:59]} Nf6 {[%emt 0:02:44]} 8. c4 {[%emt 0:06:05]} Bc5 {[%emt 0:00:28]} 9. Qe2 {[%emt 0:02:49]} O-O {[%emt 0:01:05]} 10. Be3 {[%emt 0:02:02]} Qb6 {[%emt 0:01:52]} 11. Bxc5 {[%emt 0:01:27]} Qxc5 {[%emt 0:00:05]} 12. Nc3 {[%emt 0:01:02]} Rb8 {[%emt 0:01:03]} 13. b3 {[%emt 0:06:58]} Re8 {[%emt 0:01:49]} 14. Rac1 {[%emt 0:01:29]} d6 {[%emt 0:01:14]} 15. h3 {[%emt 0:07:31]} Qa5 {[%emt 0:01:21]} 16. Rfd1 {[%emt 0:02:10]} Bb7 {[%emt 0:01:30]} 17. Rd2 {[%emt 0:08:41]} Ba8 {[%emt 0:14:42]} 18. Rdc2 {[%emt 0:08:34]} Nd7 {[%emt 0:03:32]} 19. Qd2 {[%emt 0:02:31]} Nc5 {[%emt 0:01:51]} 20. Nd1 {[%emt 0:02:57]} Qb6 21. Ne3 {[%emt 0:03:09]} g6 {[%emt 0:05:06]} 22. Rb1 {[%emt 0:02:56]} a5 23. Rcb2 {[%emt 0:02:13]} Qb4 {[%emt 0:04:38]} 24. Ng4 {[%emt 0:02:54]} Re6 {[%emt 0:02:27]} 25. Ne3 {[%emt 0:05:13]} h5 {[%emt 0:01:29]} 26. f3 {[%emt 0:04:50]} Ree8 {[%emt 0:02:04]} 27. Bf1 {[%emt 0:01:04]} Red8 {[%emt 0:01:26]} 28. Qxb4 {[%emt 0:00:59]} axb4 {[%emt 0:01:35]} 29. Rd2 {[%emt 0:02:13]} Kf8 {[%emt 0:00:49]} 30. Rbd1 {[%emt 0:01:42]} Ke7 {[%emt 0:03:17]} 31. Kf2 {[%emt 0:00:50]} Bb7 {[%emt 0:01:51]} 32. Bd3 {[%emt 0:01:34]} Bc8 {[%emt 0:00:49]} 33. Bb1 {[%emt 0:00:33]} f6 {[%emt 0:00:37]} 34. g4 {[%emt 0:01:25]} h4 {[%emt 0:02:09]} 35. Ke2 {[%emt 0:00:56]} Ne6 {[%emt 0:00:11]} 36. Kf2 {[%emt 0:00:55]} Bb7 {[%emt 0:00:44]} 37. Rh1 {[%emt 0:01:28]} Rd7 {[%emt 0:01:54]} 38. Rhd1 {[%emt 0:00:52]} Nf4 {[%emt 0:02:05]} 39. Rh1 {[%emt 0:00:28]} Ne6 {[%emt 0:01:22]} 40. Rhd1 {[%emt 0:00:00]} Rbd8 {[%emt 0:00:00]} 41. Rh1 {[%emt 0:08:58]} c5 {[%emt 0:03:57]} 42. Rhd1 {[%emt 0:01:55]} Ng5 {[%emt 0:02:26]} 43. Rh1 {[%emt 0:01:52]} Ne6 {[%emt 0:01:07]} 44. Rdd1 {[%emt 0:02:52]} Nd4 {[%emt 0:00:28]} 45. Nc2 {[%emt 0:01:10]} Nxc2 {[%emt 0:01:05]} 46. Bxc2 {[%emt 0:00:06]} Ra8 {[%emt 0:00:09]} 47. Bb1 {[%emt 0:00:41]} Bc8 {[%emt 0:00:44]} 48. Ke3 {[%emt 0:01:56]} 1/2-1/2

[Event "Polish Youth 1st League 2022"]
[Site "Lublin"]
[Date "2022.06.27"]
[Round "3.29"]
[White "Starosta, Martyna"]
[Black "Kroliczek, Gabriela"]
[Result "0-1"]
[ECO "B34"]
[WhiteElo "1918"]
[BlackElo "1934"]
[Annotator "RC"]
[PlyCount "92"]
[EventDate "2022.06.24"]
[EventType "team-tourn"]
[EventCountry "POL"]
[SourceTitle "playchess.com"]
[Source "ChessBase"]
[SourceQuality "1"]
[TimeControl "40/5400+30:1800+30"]

1. e4 {[%emt 0:00:02]} c5 {[%emt 0:00:04]} 2. Nf3 {[%emt 0:00:20]} Nc6 {[%emt 0:00:06]} 3. d4 {[%emt 0:00:05]} cxd4 {[%emt 0:00:04]} 4. Nxd4 {[%emt 0:00:04]} Nf6 {[%emt 0:00:04]} 5. Nc3 {[%emt 0:00:08]} e5 {[%emt 0:00:06]} 6. Ndb5 {[%emt 0:00:13]} d6 {[%emt 0:00:07]} 7. Nd5 {[%emt 0:00:50]} Nxd5 {[%emt 0:00:05]} 8. exd5 {[%emt 0:00:05]} Nb8 {[%emt 0:00:05]} 9. a4 {[%emt 0:00:10]} Be7 {[%emt 0:00:04]} 10. Be2 {[%emt 0:00:21]} O-O {[%emt 0:00:07]} 11. O-O {[%emt 0:00:48]} a6 {[%emt 0:00:03]} 12. Na3 {[%emt 0:00:08]} Nd7 {[%emt 0:00:03]} 13. Kh1 {[%emt 0:00:09]} f5 {[%emt 0:00:06]} 14. f4 {[%emt 0:00:08]} g5 {[%emt 0:00:02]} 15. fxg5 {[%emt 0:07:56]} Bxg5 {[%emt 0:03:29]} 16. Nc4 {[%emt 0:03:29]} Bxc1 {[%emt 0:06:09]} 17. Rxc1 {[%emt 0:02:14]} Qf6 {[%emt 0:05:07]} 18. Qe1 {[%emt 0:22:59]} Kh8 {[%emt 0:18:33]} 19. Bg4 {[%emt 0:12:25]} Qg6 {[%emt 0:04:51]} 20. Bh3 {[%emt 0:02:31]} b5 {[%emt 0:11:14]} 21. axb5 {[%emt 0:08:45]} axb5 {[%emt 0:00:07]} 22. Ne3 {[%emt 0:08:06]} Nc5 {[%emt 0:06:21]} 23. Qh4 {[%emt 0:07:12]} f4 {[%emt 0:11:01]} 24. Ng4 {[%emt 0:07:22]} Bf5 {[%emt 0:06:32]} 25. b4 {[%emt 0:01:51]} Ne4 {[%emt 0:01:39]} 26. Nh6 {[%emt 0:05:10]} Bxh3 {[%emt 0:00:08]} 27. Qxh3 {[%emt 0:01:38]} Ra4 {[%emt 0:01:16]} 28. Qe6 {[%emt 0:02:37]} Rxb4 {[%emt 0:02:58]} 29. Ra1 {[%emt 0:00:33]} Ra4 {[%emt 0:00:52]} 30. Rxa4 {[%emt 0:04:48]} bxa4 {[%emt 0:00:04]} 31. Ra1 {[%emt 0:00:30]} Nc5 {[%emt 0:00:39]} 32. Qxg6 {[%emt 0:00:15]} hxg6 {[%emt 0:00:04]} 33. Kg1 {[%emt 0:00:12]} Kg7 {[%emt 0:00:08]} 34. Ng4 {[%emt 0:00:05]} Rb8 {[%emt 0:00:06]} 35. Ra2 {[%emt 0:00:29]} Rb4 {[%emt 0:07:15]} 36. Kf2 {[%emt 0:01:15]} Rd4 {[%emt 0:00:43]} 37. Ke2 {[%emt 0:00:16]} Rxd5 {[%emt 0:01:01]} 38. c3 {[%emt 0:00:14]} Ne4 {[%emt 0:02:04]} 39. Ra3 {[%emt 0:00:13]} Kf7 {[%emt 0:07:16]} 40. Ke1 {[%emt 0:00:00]} Rb5 {[%emt 0:00:00]} 41. c4 {[%emt 0:03:31]} Rb1+ {[%emt 0:08:14]} 42. Ke2 {[%emt 0:00:06]} Rb2+ {[%emt 0:00:03]} 43. Kf1 {[%emt 0:00:54]} Nc5 {[%emt 0:00:55]} 44. Nf2 {[%emt 0:00:20]} Rb3 {[%emt 0:06:43]} 45. Rxb3 {[%emt 0:01:33]} axb3 {[%emt 0:00:11]} 46. Nd1 {[%emt 0:00:08]} Na4 {[%emt 0:00:01]} 0-1

[Event "Polish Youth 1st League 2022"]
[Site "Lublin"]
[Date "2022.06.27"]
[Round "3.30"]
[White "Seemann, Pola"]
[Black "Kulczycka, Zofia"]
[Result "1-0"]
[ECO "B18"]
[WhiteElo "1777"]
[BlackElo "1564"]
[Annotator "NA RC"]
[PlyCount "85"]
[EventDate "2022.06.24"]
[EventType "team-tourn"]
[EventCountry "POL"]
[SourceTitle "playchess.com"]
[Source "ChessBase"]
[SourceQuality "1"]
[TimeControl "40/5400+30:1800+30"]

1. e4 {[%emt 0:00:03]} c6 {[%emt 0:00:07]} 2. d4 {[%emt 0:00:04]} d5 {[%emt 0:00:07]} 3. Nc3 {[%emt 0:00:05]} dxe4 {[%emt 0:00:09]} 4. Nxe4 {[%emt 0:00:05]} Bf5 {[%emt 0:00:11]} 5. Ng3 {[%emt 0:00:05]} Bg6 {[%emt 0:00:07]} 6. N1e2 {[%emt 0:00:10]} Nd7 {[%emt 0:00:25]} 7. Nf4 {[%emt 0:00:22]} e5 {[%emt 0:00:49]} 8. Nxg6 {[%emt 0:13:55]} hxg6 {[%emt 0:00:43]} 9. Be3 {[%emt 0:02:24]} Ngf6 {[%emt 0:09:24]} 10. Bc4 {[%emt 0:08:20]} Qe7 {[%emt 0:11:17]} 11. Qe2 {[%emt 0:09:19]} O-O-O {[%emt 0:12:25]} 12. O-O-O {[%emt 0:07:09]} exd4 {[%emt 0:27:05]} 13. Bxd4 {[%emt 0:08:13]} Qxe2 {[%emt 0:01:05]} 14. Nxe2 {[%emt 0:00:18]} c5 {[%emt 0:06:03]} 15. Bxf6 {[%emt 0:03:06]} gxf6 {[%emt 0:00:13]} 16. Bxf7 {[%emt 0:00:44]} Bh6+ {[%emt 0:00:18]} 17. Kb1 {[%emt 0:00:38]} Ne5 {[%emt 0:01:00]} 18. Be6+ {[%emt 0:02:22]} Kb8 {[%emt 0:03:34]} 19. f4 {[%emt 0:03:44]} Nc6 {[%emt 0:01:22]} 20. g3 {[%emt 0:01:55]} Bg7 {[%emt 0:04:25]} 21. h4 {[%emt 0:05:18]} Rhe8 {[%emt 0:03:33]} 22. Bc4 {[%emt 0:08:06]} Na5 {[%emt 0:10:32]} 23. Rxd8+ {[%emt 0:04:14]} Rxd8 {[%emt 0:00:05]} 24. Bf7 {[%emt 0:00:15]} Rd2 {[%emt 0:00:21]} 25. Re1 {[%emt 0:00:43]} g5 {[%emt 0:04:16]} 26. h5 {[%emt 0:01:53]} Rd7 {[%emt 0:00:30]} 27. Be6 {[%emt 0:01:32]} Rd2 {[%emt 0:00:53]} 28. Kc1 {[%emt 0:01:41]} Rd6 {[%emt 0:00:10]} 29. f5 {[%emt 0:00:28]} Nc6 {[%emt 0:01:36]} 30. Nc3 {[%emt 0:02:35]} Nd4 {[%emt 0:01:03]} 31. g4 {[%emt 0:03:28]} Nf3 {[%emt 0:01:01]} 32. Rh1 {[%emt 0:01:44]} Nh4 {[%emt 0:00:45]} 33. Ne4 {[%emt 0:01:13]} Rd4 {[%emt 0:00:31]} 34. Nxc5 {[%emt 0:00:20]} Rxg4 {[%emt 0:00:09]} 35. Rd1 {[%emt 0:00:14]} a6 {[%emt 0:00:51]} 36. b3 {[%emt 0:00:52]} Bh6 {[%emt 0:00:43]} 37. Rd8+ {[%emt 0:00:25]} Ka7 {[%emt 0:00:05]} 38. Rh8 {[%emt 0:00:12]} Bg7 {[%emt 0:00:35]} 39. Rh7 {[%emt 0:00:18]} Bf8 {[%emt 0:00:47]} 40. Rxb7+ {[%emt 0:00:00]} Ka8 {[%emt 0:00:00]} 41. Rc7 {[%emt 0:04:42]} Bd6 {[%emt 0:03:37]} 42. Bd5+ {[%emt 0:00:07]} Kb8 {[%emt 0:00:16]} 43. Nxa6# {[%emt 0:00:05]} 1-0